fUST/lending_fUST_20260316
["ID","MTS","AMOUNT","RATE_DAILY","PERIOD"]
[408419265,1773594006163,295.46,2e-05,2]
[408419266,1773594006465,295.46,2e-05,2]
[408419267,1773594006743,295.46,2e-05,2]
[408419268,1773594024893,-295.46,2.1e-05,2]
[408419269,1773594024913,-295.46,2.1e-05,2]
[408419270,1773594024924,-190.49082652,2.1e-05,2]
[408419271,1773594149141,-4381.21965074,2.058e-05,2]
[408419272,1773594149164,-5000.0,2.079e-05,2]
[408419273,1773594149184,-300.0,2.099e-05,2]
[408419274,1773594149210,-104.96917348,2.1e-05,2]
[408419275,1773594149231,-213.81117578,2.1e-05,2]
[408419276,1773594162880,-5000.0,2.079e-05,2]
[408419277,1773594162901,-81.64882422,2.1e-05,2]
[408419278,1773594162924,-295.46,2.1e-05,2]
[408419279,1773594162946,-295.46,2.1e-05,2]
[408419280,1773594162968,-295.46,2.1e-05,2]
[408419281,1773594162991,-295.46,2.1e-05,2]
[408419282,1773594163016,-295.46,2.1e-05,2]
[408419283,1773594163039,-295.46,2.1e-05,2]
[408419284,1773594163063,-295.46,2.1e-05,2]
[408419285,1773594163085,-295.46,2.1e-05,2]
[408419286,1773594163109,-295.46,2.1e-05,2]
[408419287,1773594163131,-295.46,2.1e-05,2]
[408419288,1773594163153,-295.46,2.1e-05,2]
[408419289,1773594163177,-295.46,2.1e-05,2]
[408419290,1773594163203,-295.46,2.1e-05,2]
[408419291,1773594163225,-295.46,2.1e-05,2]
[408419292,1773594163249,-295.46,2.1e-05,2]
[408419293,1773594163271,-295.46,2.1e-05,2]
[408419294,1773594163294,-190.99117578,2.1e-05,2]
[408419295,1773594177856,-104.46882422,2.1e-05,2]
[408419296,1773594177877,-295.46,2.1e-05,2]
[408419297,1773594177896,-295.46,2.1e-05,2]
[408419298,1773594177915,-295.46,2.1e-05,2]
[408419299,1773594177934,-500.0,2.125e-05,2]
[408419300,1773594177953,-500.0,2.125e-05,2]
[408419301,1773594177974,-300.0,2.141e-05,2]
[408419302,1773594177995,-300.0,2.141e-05,2]
[408419303,1773594178015,-300.0,2.141e-05,2]
[408419304,1773594178036,-300.0,2.141e-05,2]
[408419305,1773594178057,-300.0,2.141e-05,2]
[408419306,1773594178077,-300.0,2.141e-05,2]
[408419307,1773594178098,-300.0,2.141e-05,2]
[408419308,1773594178119,-300.0,2.141e-05,2]
[408419309,1773594178140,-300.0,2.141e-05,2]
[408419310,1773594178161,-300.0,2.141e-05,2]
[408419311,1773594178182,-300.0,2.141e-05,2]
[408419312,1773594178205,-300.0,2.141e-05,2]
[408419313,1773594178224,-300.0,2.141e-05,2]
[408419314,1773594178246,-300.0,2.141e-05,2]
[408419315,1773594178267,-300.0,2.141e-05,2]
[408419316,1773594178288,-600.0,2.141e-05,2]
[408419317,1773594178309,-720.0,2.355e-05,2]
[408419318,1773594178328,-864.0,2.591e-05,2]
[408419319,1773594178347,-1000.0,2.673e-05,2]
[408419320,1773594178367,-325.15117578,2.673e-05,2]
[408419321,1773594192840,-5000.0,2.079e-05,2]
[408419322,1773594192870,-500.48869608,2.125e-05,2]
[408419323,1773594192899,-599.59720109,2.125e-05,2]
[408419324,1773594192925,-674.84882422,2.673e-05,2]
[408419325,1773594192951,-1000.0,2.85e-05,2]
[408419326,1773594192981,-1000.0,3.135e-05,2]
[408419327,1773594193008,-244.0,3.135e-05,2]
[408419328,1773594193034,-981.06527861,3.221e-05,2]
[408419329,1773594204565,-5000.0,3.189e-05,2]
[408419330,1773594204584,-518.93472139,3.221e-05,2]
[408419331,1773594204608,-1000.0,3.448e-05,2]
[408419332,1773594204629,-492.0,3.448e-05,2]
[408419333,1773594204650,-2000.0,3.769e-05,2]
[408419334,1773594204670,-989.06527861,3.793e-05,2]
[408419336,1773594332889,-5000.0,4.274e-05,2]
[408419337,1773594332912,-300.0,4.68e-05,2]
[408419338,1773594332935,-300.0,4.68e-05,2]
[408419339,1773594332958,-300.0,4.68e-05,2]
[408419340,1773594332981,-300.0,4.68e-05,2]
[408419341,1773594333004,-300.0,4.68e-05,2]
[408419342,1773594333026,-300.0,4.68e-05,2]
[408419343,1773594333049,-300.0,4.68e-05,2]
[408419344,1773594333071,-300.0,4.68e-05,2]
[408419345,1773594333093,-300.0,4.68e-05,2]
[408419346,1773594333116,-300.0,4.68e-05,2]
[408419347,1773594333138,-300.0,4.68e-05,2]
[408419348,1773594333161,-300.0,4.68e-05,2]
[408419349,1773594333185,-300.0,4.68e-05,2]
[408419350,1773594333209,-300.0,4.68e-05,2]
[408419351,1773594333233,-300.0,4.68e-05,2]
[408419352,1773594333261,-500.0,4.773e-05,2]
[408419353,1773594373638,160.0,0.0001,120]
[408419354,1773594373947,160.0,0.0001,120]
[408419355,1773594374260,160.0,0.0001,120]
[408419356,1773594374562,160.0,0.0001,120]
[408419357,1773594374963,160.0,0.0001,120]
[408419358,1773594375587,160.0,0.0001,120]
[408419359,1773594403621,160.0,0.0001,120]
[408419360,1773594493613,-5000.0,4.725e-05,2]
[408419361,1773594493636,-100.0,4.773e-05,2]
[408419362,1773594493657,-500.0,4.802e-05,2]
[408419363,1773594493681,-1835.65717784,5e-05,2]
[408419364,1773594493706,-720.0,5.25e-05,2]
[408419365,1773594493727,-500.0,5.479e-05,2]
[408419366,1773594493749,-1344.34282216,5.735e-05,2]
[408419379,1773594602551,153.63,2e-05,2]
[408419380,1773594602951,153.63,2e-05,2]
[408419381,1773594603222,153.63,2e-05,2]
[408419382,1773594603518,153.63,2e-05,2]
[408419383,1773594603799,153.63,2e-05,2]
[408419384,1773594604091,153.63,2e-05,2]
[408419461,1773594632192,-153.63,2.1e-05,2]
[408419463,1773594632202,-153.63,2.1e-05,2]
[408419465,1773594632211,-153.63,2.1e-05,2]
[408419467,1773594632220,-153.63,2.1e-05,2]
[408419469,1773594632229,-153.63,2.1e-05,2]
[408419471,1773594632239,-153.63,2.1e-05,2]
[408419473,1773594632248,-78.22,2.1e-05,2]
[408419476,1773594632259,-75.41,2.1e-05,2]
[408419478,1773594632268,-153.63,2.1e-05,2]
[408419480,1773594632277,-153.63,2.1e-05,2]
[408419482,1773594632286,-153.63,2.1e-05,2]
[408419484,1773594632295,-153.63,2.1e-05,2]
[408419486,1773594632304,-153.63,2.1e-05,2]
[408419488,1773594632313,-153.63,2.2e-05,2]
[408419490,1773594632322,-153.63,2.2e-05,2]
[408419492,1773594632331,-153.63,2.2e-05,2]
[408419494,1773594632340,-153.63,2.2e-05,2]
[408419496,1773594632354,-153.63,2.2e-05,2]
[408419498,1773594632363,-153.63,2.2e-05,2]
[408419500,1773594632373,-153.63,2.2e-05,2]
[408419502,1773594632382,-5000.0,5.678e-05,2]
[408419504,1773594632391,-502.0,5.678e-05,2]
[408419506,1773594632400,-977.56383024,5.735e-05,2]
[408419508,1773594632409,-3666.98843279,5.767e-05,2]
[408419510,1773594632420,-600.0,6.006e-05,2]
[408419512,1773594632430,-267.87,6.046e-05,2]
[408419514,1773594632439,-161.96979513,6.21e-05,2]
[408419516,1773594632447,-500.0,6.293e-05,2]
[408419518,1773594632457,-22130.46952643,6.32e-05,2]
[408419529,1773594637834,-5000.0,6.257e-05,2]
[408419530,1773594637845,-579621.90693158,6.32e-05,2]
[408419531,1773594637855,-500.0,6.403e-05,2]
[408419532,1773594637864,-273.23214267,6.403e-05,2]
[408419533,1773594637874,-500.49975682,6.403e-05,2]
[408419534,1773594637884,-500.0,6.403e-05,2]
[408419535,1773594637893,-500.0,6.403e-05,2]
[408419536,1773594637903,-500.0,6.403e-05,2]
[408419537,1773594637912,-155.0,6.421e-05,2]
[408419538,1773594637922,-281.41082652,6.421e-05,2]
[408419539,1773594637931,-500.0,6.421e-05,2]
[408419540,1773594637940,-500.0,6.421e-05,2]
[408419541,1773594637950,-500.0,6.421e-05,2]
[408419542,1773594637959,-500.0,6.421e-05,2]
[408419543,1773594637969,-500.0,6.421e-05,2]
[408419544,1773594637978,-500.0,6.421e-05,2]
[408419545,1773594637988,-500.0,6.421e-05,2]
[408419546,1773594637997,-500.0,6.421e-05,2]
[408419547,1773594638007,-500.0,6.421e-05,2]
[408419548,1773594638018,-500.0,6.421e-05,2]
[408419549,1773594638029,-500.0,6.421e-05,2]
[408419550,1773594638038,-500.0,6.421e-05,2]
[408419551,1773594638048,-500.0,6.421e-05,2]
[408419552,1773594638058,-500.0,6.421e-05,2]
[408419553,1773594638067,-500.0,6.421e-05,2]
[408419554,1773594638076,-500.0,6.421e-05,2]
[408419555,1773594638085,-500.0,6.421e-05,2]
[408419556,1773594638094,-500.0,6.421e-05,2]
[408419557,1773594638104,-500.0,6.421e-05,2]
[408419558,1773594638115,-500.0,6.421e-05,2]
[408419559,1773594638126,-500.0,6.421e-05,2]
[408419560,1773594638137,-500.0,6.421e-05,2]
[408419561,1773594638147,-500.0,6.421e-05,2]
[408419562,1773594638157,-500.0,6.421e-05,2]
[408419563,1773594638167,-500.0,6.421e-05,2]
[408419564,1773594638177,-164.19554131,6.421e-05,2]
[408419565,1773594638186,-500.0,6.421e-05,2]
[408419566,1773594638198,-500.0,6.422e-05,2]
[408419567,1773594638208,-500.0,6.422e-05,2]
[408419568,1773594638217,-500.0,6.422e-05,2]
[408419569,1773594638226,-500.0,6.422e-05,2]
[408419570,1773594638237,-500.0,6.422e-05,2]
[408419571,1773594638247,-500.0,6.422e-05,2]
[408419572,1773594638256,-500.0,6.422e-05,2]
[408419573,1773594638266,-500.0,6.422e-05,2]
[408419574,1773594638276,-500.0,6.422e-05,2]
[408419575,1773594638285,-500.0,6.422e-05,2]
[408419576,1773594638295,-500.0,6.422e-05,2]
[408419577,1773594638304,-500.0,6.422e-05,2]
[408419578,1773594638315,-500.0,6.422e-05,2]
[408419579,1773594638324,-500.0,6.422e-05,2]
[408419580,1773594638334,-500.0,6.422e-05,2]
[408419581,1773594638343,-500.0,6.422e-05,2]
[408419582,1773594638357,-500.0,6.422e-05,2]
[408419583,1773594638366,-500.0,6.422e-05,2]
[408419584,1773594638377,-500.0,6.422e-05,2]
[408419585,1773594638386,-500.0,6.422e-05,2]
[408419586,1773594638398,-500.0,6.422e-05,2]
[408419587,1773594638408,-500.0,6.422e-05,2]
[408419588,1773594638417,-500.0,6.422e-05,2]
[408419589,1773594638431,-500.0,6.422e-05,2]
[408419590,1773594638441,-500.0,6.422e-05,2]
[408419591,1773594638450,-500.0,6.422e-05,2]
[408419592,1773594638462,-500.0,6.422e-05,2]
[408419593,1773594638472,-500.0,6.422e-05,2]
[408419594,1773594638481,-500.0,6.422e-05,2]
[408419595,1773594638490,-500.0,6.422e-05,2]
[408419596,1773594638499,-500.0,6.422e-05,2]
[408419597,1773594638510,-500.0,6.422e-05,2]
[408419598,1773594638522,-500.0,6.422e-05,2]
[408419599,1773594638531,-500.0,6.422e-05,2]
[408419600,1773594638541,-500.0,6.422e-05,2]
[408419601,1773594638549,-500.0,6.422e-05,2]
[408419602,1773594638559,-500.0,6.422e-05,2]
[408419603,1773594638567,-500.0,6.422e-05,2]
[408419604,1773594638577,-500.0,6.422e-05,2]
[408419605,1773594638586,-500.0,6.422e-05,2]
[408419606,1773594638595,-500.0,6.422e-05,2]
[408419607,1773594638604,-500.0,6.422e-05,2]
[408419608,1773594638614,-500.0,6.422e-05,2]
[408419609,1773594638623,-500.0,6.422e-05,2]
[408419610,1773594638633,-500.0,6.422e-05,2]
[408419611,1773594638642,-500.0,6.422e-05,2]
[408419612,1773594638651,-500.0,6.422e-05,2]
[408419613,1773594638660,-500.0,6.422e-05,2]
[408419614,1773594638669,-500.0,6.422e-05,2]
[408419615,1773594638678,-500.0,6.422e-05,2]
[408419616,1773594638687,-500.0,6.422e-05,2]
[408419617,1773594638696,-500.0,6.422e-05,2]
[408419618,1773594638706,-500.0,6.422e-05,2]
[408419619,1773594638715,-500.0,6.422e-05,2]
[408419620,1773594638724,-500.0,6.422e-05,2]
[408419621,1773594638734,-500.0,6.422e-05,2]
[408419622,1773594638743,-500.0,6.422e-05,2]
[408419623,1773594638753,-500.0,6.422e-05,2]
[408419624,1773594638762,-500.0,6.422e-05,2]
[408419625,1773594638771,-500.0,6.422e-05,2]
[408419626,1773594638781,-500.0,6.422e-05,2]
[408419627,1773594638791,-500.0,6.422e-05,2]
[408419628,1773594638800,-500.0,6.422e-05,2]
[408419629,1773594638810,-500.0,6.422e-05,2]
[408419630,1773594638818,-500.0,6.422e-05,2]
[408419631,1773594638828,-500.0,6.422e-05,2]
[408419632,1773594638838,-500.0,6.422e-05,2]
[408419633,1773594638847,-500.0,6.422e-05,2]
[408419634,1773594638856,-500.0,6.422e-05,2]
[408419635,1773594638866,-500.0,6.422e-05,2]
[408419636,1773594638876,-500.0,6.422e-05,2]
[408419637,1773594638885,-500.0,6.422e-05,2]
[408419638,1773594638895,-500.0,6.422e-05,2]
[408419639,1773594638904,-500.0,6.422e-05,2]
[408419640,1773594638914,-500.0,6.422e-05,2]
[408419641,1773594638923,-500.0,6.422e-05,2]
[408419642,1773594638932,-500.0,6.422e-05,2]
[408419643,1773594638941,-500.0,6.422e-05,2]
[408419644,1773594638950,-500.0,6.422e-05,2]
[408419645,1773594638959,-500.0,6.422e-05,2]
[408419646,1773594638968,-500.0,6.422e-05,2]
[408419647,1773594638977,-500.0,6.422e-05,2]
[408419648,1773594638986,-500.0,6.422e-05,2]
[408419649,1773594638996,-500.0,6.422e-05,2]
[408419650,1773594639006,-500.0,6.422e-05,2]
[408419651,1773594639015,-500.0,6.422e-05,2]
[408419652,1773594639024,-500.0,6.422e-05,2]
[408419653,1773594639034,-500.0,6.422e-05,2]
[408419654,1773594639043,-500.0,6.422e-05,2]
[408419655,1773594639053,-500.0,6.422e-05,2]
[408419656,1773594639066,-500.0,6.422e-05,2]
[408419657,1773594639076,-500.0,6.422e-05,2]
[408419658,1773594639085,-500.0,6.422e-05,2]
[408419659,1773594639095,-500.0,6.422e-05,2]
[408419660,1773594639104,-500.0,6.422e-05,2]
[408419661,1773594639114,-500.0,6.422e-05,2]
[408419662,1773594639124,-500.0,6.422e-05,2]
[408419663,1773594639133,-500.0,6.422e-05,2]
[408419664,1773594639143,-500.0,6.422e-05,2]
[408419665,1773594639152,-500.0,6.422e-05,2]
[408419666,1773594639162,-151.0,6.422e-05,2]
[408419667,1773594639172,-151.0,6.422e-05,2]
[408419668,1773594639181,-7926.57996427,6.422e-05,2]
[408419669,1773594639191,-2321.9066524,6.476e-05,2]
[408419670,1773594639201,-5498.31968773,6.534e-05,2]
[408419671,1773594639210,-151.0,6.552e-05,2]
[408419672,1773594639220,-720.0,6.606e-05,2]
[408419673,1773594639230,-500.0,6.664e-05,2]
[408419674,1773594639241,-7926.57996424,6.667e-05,2]
[408419675,1773594639252,-438.75290073,6.685e-05,2]
[408419676,1773594639262,-500.0,6.703e-05,2]
[408419677,1773594639272,-438.75290073,6.712e-05,2]
[408419678,1773594639282,-186.6626493,6.715e-05,2]
[408419679,1773594639292,-438.75290073,6.767e-05,2]
[408419681,1773594639302,-151.0,6.78e-05,2]
[408419683,1773594639312,-151.0,6.78e-05,2]
[408419685,1773594639321,-151.0,6.78e-05,2]
[408419686,1773594639331,-166.0,6.78e-05,2]
[408419687,1773594639341,-351.0,6.78e-05,2]
[408419688,1773594639355,-351.0,6.78e-05,2]
[408419689,1773594639366,-351.0,6.78e-05,2]
[408419690,1773594639376,-351.0,6.78e-05,2]
[408419691,1773594639386,-690.0,6.78e-05,2]
[408419692,1773594639398,-351.0,6.78e-05,2]
[408419693,1773594639407,-690.0,6.78e-05,2]
[408419694,1773594639418,-339.0,6.78e-05,2]
[408419695,1773594639432,-351.0,6.78e-05,2]
[408419696,1773594639442,-690.0,6.78e-05,2]
[408419697,1773594639452,-339.0,6.78e-05,2]
[408419698,1773594639462,-351.0,6.78e-05,2]
[408419699,1773594639472,-690.0,6.78e-05,2]
[408419700,1773594639482,-339.0,6.78e-05,2]
[408419701,1773594639492,-351.0,6.78e-05,2]
[408419702,1773594639503,-690.0,6.78e-05,2]
[408419703,1773594639513,-339.0,6.78e-05,2]
[408419704,1773594639522,-351.0,6.78e-05,2]
[408419705,1773594639532,-690.0,6.78e-05,2]
[408419706,1773594639542,-339.0,6.78e-05,2]
[408419707,1773594639552,-351.0,6.78e-05,2]
[408419708,1773594639562,-690.0,6.78e-05,2]
[408419709,1773594639572,-339.0,6.78e-05,2]
[408419710,1773594639582,-351.0,6.78e-05,2]
[408419711,1773594639591,-690.0,6.78e-05,2]
[408419712,1773594639601,-339.0,6.78e-05,2]
[408419713,1773594639611,-690.0,6.78e-05,2]
[408419714,1773594639620,-298.90682547,6.78e-05,2]
[408419715,1773594639629,-339.0,6.78e-05,2]
[408419716,1773594639639,-690.0,6.78e-05,2]
[408419717,1773594639648,-339.0,6.78e-05,2]
[408419718,1773594639657,-690.0,6.78e-05,2]
[408419719,1773594639666,-690.0,6.78e-05,2]
[408419720,1773594639676,-690.0,6.78e-05,2]
[408419721,1773594639686,-339.0,6.78e-05,2]
[408419722,1773594639695,-690.0,6.78e-05,2]
[408419723,1773594639706,-339.0,6.78e-05,2]
[408419724,1773594639716,-690.0,6.78e-05,2]
[408419725,1773594639727,-339.0,6.78e-05,2]
[408419726,1773594639738,-690.0,6.78e-05,2]
[408419727,1773594639748,-339.0,6.78e-05,2]
[408419728,1773594639758,-690.0,6.78e-05,2]
[408419730,1773594639769,-339.0,6.78e-05,2]
[408419733,1773594639782,-690.0,6.78e-05,2]
[408419735,1773594639793,-339.0,6.78e-05,2]
[408419737,1773594639803,-690.0,6.78e-05,2]
[408419738,1773594639813,-339.0,6.78e-05,2]
[408419741,1773594639823,-690.0,6.78e-05,2]
[408419743,1773594639833,-339.0,6.78e-05,2]
[408419745,1773594639843,-324.23734771,6.78e-05,2]
[408419747,1773594639852,-339.0,6.78e-05,2]
[408419749,1773594639862,-339.0,6.78e-05,2]
[408419751,1773594639872,-339.0,6.78e-05,2]
[408419753,1773594639882,-339.0,6.78e-05,2]
[408419755,1773594639892,-339.0,6.78e-05,2]
[408419757,1773594639902,-339.0,6.78e-05,2]
[408419759,1773594639912,-339.0,6.78e-05,2]
[408419761,1773594639922,-339.0,6.78e-05,2]
[408419763,1773594639931,-339.0,6.78e-05,2]
[408419764,1773594639941,-339.0,6.78e-05,2]
[408419766,1773594639950,-339.0,6.78e-05,2]
[408419768,1773594639959,-339.0,6.78e-05,2]
[408419770,1773594639969,-339.0,6.78e-05,2]
[408419772,1773594639979,-339.0,6.78e-05,2]
[408419774,1773594639988,-339.0,6.78e-05,2]
[408419777,1773594639997,-339.0,6.78e-05,2]
[408419778,1773594640007,-339.0,6.78e-05,2]
[408419781,1773594640016,-339.0,6.78e-05,2]
[408419783,1773594640026,-339.0,6.78e-05,2]
[408419812,1773594640287,-339.0,6.78e-05,2]
[408419814,1773594640307,-339.0,6.78e-05,2]
[408419817,1773594640318,-339.0,6.78e-05,2]
[408419818,1773594640327,-339.0,6.78e-05,2]
[408419820,1773594640338,-339.0,6.78e-05,2]
[408419822,1773594640349,-339.0,6.78e-05,2]
[408419825,1773594640364,-339.0,6.78e-05,2]
[408419827,1773594640374,-339.0,6.78e-05,2]
[408419829,1773594640390,-339.0,6.78e-05,2]
[408419832,1773594640404,-339.0,6.78e-05,2]
[408419834,1773594640413,-339.0,6.78e-05,2]
[408419836,1773594640424,-339.0,6.78e-05,2]
[408419838,1773594640434,-339.0,6.78e-05,2]
[408419840,1773594640444,-304.74801984,6.78e-05,2]
[408419842,1773594640453,-151.0,6.782e-05,2]
[408419843,1773594640464,-151.0,6.782e-05,2]
[408419845,1773594640474,-438.75290073,6.795e-05,2]
[408419847,1773594640483,-438.75290073,6.822e-05,2]
[408419848,1773594640493,-1000.0,6.841e-05,2]
[408419849,1773594640503,-500.0,6.841e-05,2]
[408419851,1773594640512,-500.0,6.841e-05,2]
[408419852,1773594640522,-500.0,6.841e-05,2]
[408419853,1773594640532,-500.0,6.841e-05,2]
[408419854,1773594640542,-500.0,6.841e-05,2]
[408419855,1773594640553,-500.0,6.841e-05,2]
[408419856,1773594640563,-500.0,6.841e-05,2]
[408419857,1773594640572,-500.0,6.841e-05,2]
[408419858,1773594640582,-500.0,6.841e-05,2]
[408419859,1773594640592,-500.0,6.841e-05,2]
[408419860,1773594640604,-500.0,6.841e-05,2]
[408419861,1773594640614,-331.7501667,6.841e-05,2]
[408419862,1773594640623,-151.0,6.841e-05,2]
[408419863,1773594640633,-151.0,6.841e-05,2]
[408419864,1773594640644,-151.0,6.849e-05,2]
[408419865,1773594640654,-438.75290073,6.849e-05,2]
[408419866,1773594640664,-300.0,6.849e-05,2]
[408419867,1773594640674,-1395.0,6.854e-05,2]
[408419868,1773594640684,-2185.0,6.854e-05,2]
[408419869,1773594640694,-640.0,6.854e-05,2]
[408419870,1773594640704,-438.75290073,6.877e-05,2]
[408419871,1773594640714,-162.380719,6.881e-05,2]
[408419872,1773594640724,-500.0,6.881e-05,2]
[408419873,1773594640735,-445.202766,6.881e-05,2]
[408419874,1773594640744,-500.0,6.881e-05,2]
[408419875,1773594640754,-151.0,6.881e-05,2]
[408419876,1773594640764,-500.0,6.881e-05,2]
[408419877,1773594640773,-500.0,6.881e-05,2]
[408419878,1773594640783,-500.0,6.881e-05,2]
[408419879,1773594640792,-1957.856,6.881e-05,2]
[408419880,1773594640803,-162.380719,6.881e-05,2]
[408419881,1773594640814,-500.0,6.881e-05,2]
[408419882,1773594640823,-500.0,6.881e-05,2]
[408419883,1773594640833,-500.0,6.881e-05,2]
[408419884,1773594640842,-500.0,6.881e-05,2]
[408419885,1773594640853,-500.0,6.881e-05,2]
[408419886,1773594640863,-500.0,6.881e-05,2]
[408419887,1773594640872,-500.0,6.881e-05,2]
[408419888,1773594640883,-500.0,6.881e-05,2]
[408419889,1773594640893,-500.0,6.881e-05,2]
[408419890,1773594640903,-500.0,6.881e-05,2]
[408419891,1773594640914,-500.0,6.881e-05,2]
[408419892,1773594640924,-500.0,6.881e-05,2]
[408419893,1773594640933,-500.0,6.881e-05,2]
[408419894,1773594640943,-156.587,6.881e-05,2]
[408419895,1773594640952,-5376.845,6.881e-05,2]
[408419896,1773594640961,-537.6845,6.881e-05,2]
[408419897,1773594640971,-2150.738,6.881e-05,2]
[408419898,1773594640980,-7926.57996424,6.911e-05,2]
[408419899,1773594640990,-500.29079759,6.913e-05,2]
[408419900,1773594640999,-500.0,6.913e-05,2]
[408419901,1773594641009,-500.0,6.913e-05,2]
[408419902,1773594641018,-438.75290073,6.932e-05,2]
[408419903,1773594641028,-2030.296672,6.936e-05,2]
[408419904,1773594641037,-5575.788265,6.936e-05,2]
[408419905,1773594641047,-184.765634,6.94e-05,2]
[408419906,1773594641057,-151.0,6.94e-05,2]
[408419907,1773594641067,-269.99413988,6.94e-05,2]
[408419908,1773594641076,-203.3762209,6.942e-05,2]
[408419909,1773594641086,-384.69699733,6.942e-05,2]
[408419910,1773594641097,-439.65371124,6.942e-05,2]
[408419911,1773594641106,-686.95892381,6.942e-05,2]
[408419912,1773594641116,-366.07719763,6.942e-05,2]
[408419913,1773594641125,-650.8039069,6.942e-05,2]
[408419914,1773594641141,-989.22085029,6.942e-05,2]
[408419915,1773594641156,-1346.43949067,6.942e-05,2]
[408419916,1773594641166,-1758.61484495,6.942e-05,2]
[408419917,1773594641176,-2225.74691314,6.942e-05,2]
[408419918,1773594641185,-1016.88110452,6.942e-05,2]
[408419919,1773594641195,-1464.30879051,6.942e-05,2]
[408419920,1773594641206,-667.77796006,6.951e-05,2]
[408419921,1773594641216,-1000.0,6.951e-05,2]
[408419922,1773594641230,-1000.0,6.951e-05,2]
[408419923,1773594641244,-438.75290073,6.959e-05,2]
[408419924,1773594641259,-1993.08696487,6.971e-05,2]
[408419925,1773594641269,-2747.83569524,6.984e-05,2]
[408419926,1773594641280,-438.75290073,6.986e-05,2]
[408419927,1773594641291,-1719.21573008,6.991e-05,2]
[408419928,1773594641303,-2286.96505186,6.991e-05,2]
[408419929,1773594641313,-438.75290073,7.014e-05,2]
[408419930,1773594641323,-438.75290073,7.041e-05,2]
[408419931,1773594641332,-3324.88119124,7.044e-05,2]
[408419932,1773594641343,-800.0,7.05e-05,2]
[408419933,1773594641356,-2603.21562758,7.058e-05,2]
[408419934,1773594641366,-155.0,7.063e-05,2]
[408419935,1773594641376,-800.0,7.067e-05,2]
[408419936,1773594641386,-6393.72191832,7.099e-05,2]
[408419937,1773594641398,-788.0,7.1e-05,2]
[408419938,1773594641408,-3956.88340114,7.103e-05,2]
[408419939,1773594641418,-800.0,7.127e-05,2]
[408419940,1773594641429,-800.0,7.135e-05,2]
[408419941,1773594641439,-3294.69477866,7.146e-05,2]
[408419942,1773594641449,-7926.57996424,7.156e-05,2]
[408419943,1773594641458,-4643.84232495,7.164e-05,2]
[408419944,1773594641469,-813.1570439,7.177e-05,2]
[408419945,1773594641492,-2321.9066524,7.217e-05,2]
[408419946,1773594641513,-800.0,7.221e-05,2]
[408419947,1773594641529,-5385.75796267,7.224e-05,2]
[408419948,1773594641540,-800.0,7.228e-05,2]
[408419949,1773594641551,-3312.06977017,7.229e-05,2]
[408419950,1773594641562,-4067.5244181,7.233e-05,2]
[408419951,1773594641571,-864.0,7.267e-05,2]
[408419952,1773594641581,-185.32114665,7.275e-05,2]
[408419953,1773594641590,-6182.63031428,7.283e-05,2]
[408419954,1773594641600,-150.399,7.291e-05,2]
[408419955,1773594641610,-160.0,7.298e-05,2]
[408419956,1773594641620,-339.988766,7.298e-05,2]
[408419957,1773594641629,-519.977532,7.298e-05,2]
[408419958,1773594641638,-699.966298,7.298e-05,2]
[408419959,1773594641648,-879.955064,7.298e-05,2]
[408419960,1773594641657,-1059.94383,7.298e-05,2]
[408419961,1773594641667,-1239.932596,7.298e-05,2]
[408419962,1773594641676,-1419.921362,7.298e-05,2]
[408419963,1773594641686,-1599.910128,7.298e-05,2]
[408419964,1773594641696,-1779.898894,7.298e-05,2]
[408419965,1773594641706,-800.0,7.305e-05,2]
[408419966,1773594641715,-4921.7045459,7.321e-05,2]
[408419967,1773594641725,-7034.45937981,7.343e-05,2]
[408419968,1773594641736,-1500.0,7.388e-05,2]
[408419969,1773594641746,-600.0,7.397e-05,2]
[408419970,1773594641755,-1666.60180257,7.4e-05,2]